bitfinex-derivatives/quotes_ETHF0:USTF0_20250103
["timestamp","ask_amount","ask_price","bid_price","bid_amount"]
[1735899432493,42.10376083,3441.5,3441.4,4.66695872]
[1735899432494,45.52503782,3441.5,3441.4,4.66695872]
[1735899432885,45.52503782,3441.5,3441.4,4.57604214]
[1735899433095,45.52503782,3441.5,3441.4,4.66695781]
[1735899433991,44.51205699,3441.5,3441.4,4.66695781]
[1735899434295,44.22127699,3441.5,3441.4,5.97072864]
[1735899434594,3.42127699,3441.5,3441.4,5.97072864]
[1735899435197,2.28505822,3441.5,3441.4,5.52823571]
[1735899435586,2.28505822,3441.5,3441.4,5.52822895]
[1735899436197,0.29078,3441.5,3441.4,5.52822895]
[1735899436398,0.29078,3441.5,3441.4,12.39241502]
[1735899436589,1.30376083,3441.5,3441.4,11.08864419]
[1735899437295,2.28505822,3441.6,3441.4,12.10162502]
[1735899437494,3.58881905,3441.6,3441.5,3.29870891]
[1735899437694,1.30376083,3441.6,3441.5,3.29870891]
[1735899438694,1.30376083,3441.6,3441.5,3.29871472]
[1735899438899,4.73083375,3441.6,3441.5,0.09091472]
[1735899440290,1.74014049,3441.6,3441.5,0.09091472]
[1735899441593,1.74014049,3441.6,3441.5,0.09091759]
[1735899441594,1.30376083,3441.6,3441.5,0.09091759]
[1735899442998,1.74014049,3441.6,3441.5,0.09091759]
[1735899443991,1.44936049,3441.6,3441.5,0.09091423]
[1735899444194,1.74014049,3441.6,3441.5,0.09091423]
[1735899444792,1.74014049,3441.6,3441.5,0.09091425]
[1735899447391,6.30838252,3441.6,3441.5,0.09091425]
[1735899447796,0.29078,3441.5,3441.4,4.57574201]
[1735899448194,0.29078,3441.5,3441.4,4.95744705]
[1735899448490,0.72715966,3441.5,3441.4,4.95744705]
[1735899449095,0.72715966,3441.5,3441.4,5.97042788]
[1735899449488,0.43637966,3441.5,3441.4,5.97042788]
[1735899449893,3.42842129,3441.5,3441.4,12.10290635]
[1735899450192,3.42842129,3441.5,3441.4,12.39369635]
[1735899450996,3.42842129,3441.5,3441.4,12.39369106]
[1735899451301,3.71920129,3441.6,3441.4,12.10290106]
[1735899451502,3.71920129,3441.6,3441.5,3.58948966]
[1735899452402,0.727143,3441.6,3441.5,12.30158868]
[1735899453305,0.727143,3441.6,3441.5,11.91989902]
[1735899453500,0.727143,3441.6,3441.5,12.01080859]
[1735899453699,0.727143,3441.6,3441.5,12.30158859]
[1735899453903,0.29078,3441.6,3441.5,7.72431398]
[1735899455601,0.727143,3441.6,3441.5,7.72431398]
[1735899457208,0.727143,3441.6,3441.5,7.72431577]
[1735899459907,0.436363,3441.6,3441.5,7.72431577]
[1735899460301,0.436363,3441.6,3441.5,7.72431234]
[1735899460703,0.436363,3441.6,3441.5,7.63340441]
[1735899461008,0.436363,3441.6,3441.5,7.72430043]
[1735899461408,2.28691321,3441.9,3441.8,0.29076]
[1735899461602,2.28691321,3441.9,3441.8,0.38165602]
[1735899461803,2.28691321,3441.9,3441.8,1.39463685]
[1735899462602,2.28691321,3442.0,3441.8,5.23870126]
[1735899462800,2.28691321,3442.0,3441.9,3.5894417]
[1735899463308,2.28691321,3442.0,3441.9,3.58943933]
[1735899464107,2.57764321,3442.2,3441.9,16.58372052]
[1735899464309,2.28691321,3442.2,3442.1,1.30371083]
[1735899464507,2.28691321,3442.2,3442.1,1.39460016]
[1735899465108,2.57763321,3442.2,3442.1,1.39460016]
[1735899465607,2.57762321,3442.4,3442.3,0.29072]
[1735899465913,2.28691321,3442.4,3442.3,4.60239016]
[1735899466605,2.57761321,3442.5,3442.3,8.88119529]
[1735899466804,2.57761321,3442.5,3442.4,0.38159933]
[1735899467809,2.28691321,3442.5,3442.4,0.38159933]
[1735899468209,0.29069,3442.6,3442.5,0.2907]
[1735899468408,0.29069,3442.6,3442.5,1.39457016]
[1735899469210,0.29069,3442.6,3442.5,1.10387016]
[1735899469415,0.29069,3442.6,3442.5,1.10386235]
[1735899469914,0.29069,3442.6,3442.5,1.39456289]
[1735899470612,0.29069,3442.6,3442.5,1.10386289]
[1735899471312,0.29069,3442.6,3442.5,0.09088206]
[1735899471712,0.2907,3442.5,3442.4,0.2907]
[1735899471904,0.2907,3442.5,3442.4,0.3815825]
[1735899472410,0.2907,3442.5,3442.4,0.38158248]
[1735899473214,0.2907,3442.5,3442.4,3.58938248]
[1735899474211,0.2907,3442.5,3442.4,3.29868248]
[1735899474417,0.2907,3442.5,3442.4,3.58939248]
[1735899475515,0.2907,3442.5,3442.4,3.58939293]
[1735899476218,0.2907,3442.5,3442.4,3.58939257]
[1735899477323,2.28691321,3442.9,3442.5,0.2907]
[1735899477513,0.29068,3442.7,3442.6,1.1038634]
[1735899478621,0.29068,3442.7,3442.6,1.10386309]
[1735899478811,0.29068,3442.7,3442.6,0.09088226]
[1735899479213,0.29068,3442.7,3442.6,0.09088225]
[1735899479714,0.29068,3442.7,3442.4,4.51148083]
[1735899479920,1.01298083,3442.8,3442.5,0.09088277]
[1735899480122,0.2907,3442.5,3442.4,3.4985]
[1735899480421,0.2907,3442.5,3442.4,3.58938282]
[1735899481924,0.2907,3442.5,3442.4,4.60236365]
[1735899482219,43.81357321,3443.0,3442.4,4.31166365]
[1735899482521,0.29069,3442.7,3442.6,1.01298083]
[1735899482716,0.29069,3442.7,3442.6,1.10386365]
[1735899482919,2.28691321,3443.0,3442.9,0.29067]
[1735899483218,2.28691321,3443.0,3442.9,1.39453365]
[1735899483418,2.28691321,3443.1,3443.0,0.29066]
[1735899483723,2.28691321,3443.1,3443.0,2.40748039]
[1735899483916,2.28691321,3443.1,3443.0,2.40748118]
[1735899484221,2.28691321,3443.1,3443.0,2.6861646]
[1735899485318,2.89515778,3462.4,3443.0,2.6861646]
[1735899485319,0.29062,3443.5,3443.0,2.3955046]
[1735899485526,0.29062,3443.5,3443.4,3.49842]
[1735899485718,0.29062,3443.5,3443.4,3.58927952]
[1735899486818,0.29062,3443.5,3443.4,3.58927383]
[1735899488332,0.2906,3443.8,3443.7,0.29059]
[1735899488625,0.2906,3443.8,3443.7,0.38144383]
[1735899488831,0.2906,3443.8,3443.7,0.29059]
[1735899489221,0.2906,3443.8,3443.7,0.38143928]
[1735899489734,0.2906,3443.8,3443.7,0.38143858]
[1735899490130,3.03101508,3444.4,3443.7,0.09084858]
[1735899490338,0.29057,3444.1,3444.0,0.29057]
[1735899491029,0.29057,3444.0,3443.9,3.49838]
[1735899492037,0.29057,3444.0,3443.9,3.2078]
[1735899492332,0.29057,3444.0,3443.9,3.49838]
[1735899493334,0.29057,3444.0,3443.9,3.2078]
[1735899493541,0.29057,3444.0,3443.9,3.49838]
[1735899493835,2.30464508,3444.4,3443.9,3.2078]
[1735899494037,0.29057,3444.0,3443.9,3.2078]
[1735899497936,0.29057,3444.0,3443.9,3.49838]
[1735899499242,0.29057,3444.0,3443.9,3.2078]
[1735899500738,0.29057,3444.0,3443.9,3.49838]
[1735899500937,0.29057,3444.0,3443.9,3.2078]
[1735899501140,0.29057,3444.0,3443.9,3.49838]
[1735899501737,0.29057,3444.0,3443.9,3.2078]
[1735899502244,0.29057,3444.1,3444.0,0.29057]
[1735899502548,0.29057,3444.0,3443.9,3.49838]
[1735899502838,2.28691321,3444.3,3443.9,3.2078]
[1735899503245,0.29056,3444.2,3444.1,0.29056]
[1735899503546,2.28691321,3444.3,3443.9,3.2078]
[1735899503842,2.57747321,3444.2,3444.1,0.29056]
[1735899504031,2.57747321,3444.2,3444.1,0.38140354]
[1735899505146,40.8,3444.5,3444.1,0.09084354]
[1735899505445,40.8,3444.5,3444.2,0.29055]
[1735899505446,0.29055,3444.3,3444.2,0.29055]
[1735899505640,0.29055,3444.3,3443.9,3.2078]
[1735899505941,0.29056,3444.2,3444.1,0.29056]
[1735899506144,0.29056,3444.2,3444.1,0.38140199]
[1735899506934,0.29056,3444.2,3444.1,0.29056]
[1735899508144,40.8,3444.5,3444.0,2.02565044]
[1735899508334,40.8,3444.5,3444.4,4.51116522]
[1735899508531,41.09053,3444.5,3444.4,4.51116522]
[1735899508742,0.29053,3444.6,3444.5,0.29053]
[1735899508939,1.01282522,3444.7,3444.4,4.22062522]
[1735899509146,40.8,3444.6,3444.4,4.22062522]
[1735899509842,0.29053,3444.5,3444.4,4.51115522]
[1735899511039,0.29053,3444.5,3444.4,4.22062522]
[1735899511246,0.29053,3444.5,3444.4,3.49834]
[1735899511841,0.29053,3444.5,3444.4,3.2078]
[1735899512042,0.29053,3444.5,3444.4,3.49834]
[1735899512244,41.09053,3444.6,3444.5,0.29053]
[1735899512643,41.09053,3444.6,3444.5,0.38136229]
[1735899512846,41.09053,3444.6,3444.5,0.09083229]
[1735899514448,0.29053,3444.5,3444.4,3.2078]
[1735899514644,1.30335522,3444.5,3444.4,3.2078]
[1735899515548,3.59026843,3444.5,3444.4,3.29864531]
[1735899516234,4.88192671,3444.5,3444.4,3.29864531]
[1735899517045,2.5950135,3444.5,3444.4,3.2078]
[1735899517255,2.5950135,3444.5,3444.4,3.29864055]
[1735899519542,4.87145929,3444.5,3444.4,3.29864055]
[1735899520646,4.87311557,3444.5,3444.4,3.29864055]
[1735899520845,2.59666978,3444.5,3444.4,3.29864055]
[1735899522044,2.59666978,3444.5,3444.4,0.09084055]
[1735899522245,0.29055,3444.3,3444.2,3.2078]
[1735899522447,0.29055,3444.3,3444.2,3.29864048]
[1735899523256,0.29055,3444.3,3444.2,3.29864046]
[1735899525754,0.00165628,3444.5,3444.2,3.29864046]
[1735899526059,0.29054,3444.4,3444.3,0.38138046]
[1735899526353,0.29054,3444.4,3444.3,0.38137698]
[1735899526652,2.27810207,3444.5,3444.3,0.09083698]
[1735899526852,2.56863207,3444.5,3444.4,0.381374]
[1735899527954,0.29218628,3444.5,3444.4,0.381374]
[1735899528757,0.29218628,3444.5,3444.4,0.29054]
[1735899528957,0.29218628,3444.5,3444.4,0.38137147]
[1735899531260,2.56863207,3444.5,3444.4,0.38137147]
[1735899531759,2.56863207,3444.5,3444.4,0.38137148]
[1735899535453,2.56863207,3444.5,3444.4,0.38137078]
[1735899535955,2.56863207,3444.5,3444.4,3.58917078]
[1735899535956,0.29218628,3444.5,3444.4,3.58917078]
[1735899536352,0.00165628,3444.5,3444.4,3.58917078]
[1735899536557,0.00165628,3444.5,3444.4,3.58917074]
[1735899537962,0.00165628,3444.5,3444.4,3.58917063]
[1735899538365,0.00165628,3444.5,3444.4,4.6016772]
[1735899538554,0.00165628,3444.5,3444.4,4.60167654]
[1735899538864,2.28557413,3444.5,3444.4,4.60167654]
[1735899541166,2.28557413,3444.5,3444.4,4.60166608]
[1735899542062,0.00165628,3444.5,3444.4,8.72525652]
[1735899543163,0.00165628,3444.5,3444.4,17.8754633]
[1735899543664,0.00165628,3444.5,3444.4,17.78464379]
[1735899543869,0.00165628,3444.5,3444.4,17.87546277]
[1735899544258,0.00165628,3444.5,3444.4,17.87546313]
[1735899546064,0.00165628,3444.5,3444.4,17.87546324]
[1735899546870,0.00165628,3444.5,3444.4,17.87546336]
[1735899547563,0.00165628,3444.5,3444.4,8.72525658]
[1735899547763,0.00165628,3444.5,3444.4,7.71275001]
[1735899547964,0.29218628,3444.5,3444.4,8.72525658]
[1735899548669,0.00165628,3444.5,3444.4,8.72525658]
[1735899549872,0.00165628,3444.5,3444.4,8.72526056]
[1735899550168,0.29218628,3444.5,3444.4,8.72526038]
[1735899550361,0.29218628,3444.5,3444.4,14.55782128]
[1735899551870,0.29218628,3444.5,3444.4,3.58916337]
[1735899552071,0.29218628,3444.5,3444.4,3.29862337]
[1735899552970,0.29218628,3444.5,3444.4,3.29863696]
[1735899553374,0.29218628,3444.5,3444.4,3.2078]
[1735899553671,3.7225561,3444.5,3444.4,3.29863655]
[1735899555374,44.5225561,3444.5,3444.4,3.29863655]
[1735899555575,3.7225561,3444.5,3444.4,3.29863655]
[1735899556273,3.7225561,3444.5,3444.4,3.58917655]
[1735899556474,4.73506267,3444.5,3444.4,3.58917655]
[1735899557073,3.4320261,3444.5,3444.4,3.58917655]
[1735899557375,3.4320261,3444.5,3444.4,4.60168312]
[1735899558478,3.4320261,3444.5,3444.4,3.58917655]
[1735899558674,3.4320261,3444.5,3444.4,4.60168312]
[1735899558869,0.29218628,3444.5,3444.4,3.58917655]
[1735899559065,1.30469285,3444.5,3444.4,3.2986346]
[1735899559976,5.17109665,3444.5,3444.4,3.2986346]
[1735899560971,45.97109665,3444.5,3444.4,3.2986346]
[1735899561374,42.54072683,3444.5,3444.4,3.2986346]
[1735899562173,42.54072683,3444.5,3444.4,3.29864054]
[1735899562569,42.54072683,3444.5,3444.4,3.29864222]
[1735899565678,0.72822026,3444.5,3444.4,3.29864222]
[1735899565877,1.74072683,3444.5,3444.4,3.29864222]
[1735899567084,5.16507566,3444.5,3444.4,3.29864222]
[1735899568286,1.74072683,3444.5,3444.4,3.29864222]
[1735899568880,1.74072683,3444.5,3444.4,0.09084222]
[1735899569380,1.30469285,3444.5,3444.4,0.09084222]
[1735899570883,5.16421764,3444.5,3444.4,0.09084222]
[1735899571378,0.29055,3444.3,3444.2,1.30305657]
[1735899571582,0.29055,3444.3,3444.2,1.39389536]
[1735899572482,2.57286857,3444.3,3444.2,1.39389536]
[1735899573384,2.28231857,3444.3,3444.2,1.39389536]
[1735899573880,0.29054,3444.4,3444.2,1.39389536]
[1735899574074,3.42349081,3444.3,3444.2,1.30306657]
[1735899574273,3.42349081,3444.3,3444.2,1.39390333]
[1735899574882,3.71404081,3444.3,3444.2,1.39390333]
[1735899575882,3.71404081,3444.3,3444.2,4.60170333]
[1735899577387,3.71404081,3444.3,3444.2,4.60170322]
[1735899580484,3.71404081,3444.3,3444.2,4.60170382]
[1735899580788,4.72654738,3444.3,3444.2,3.29863725]
[1735899581086,4.72654738,3444.3,3444.2,3.29864538]
[1735899581282,1.30305657,3444.3,3444.2,3.29864538]
[1735899582987,1.30305657,3444.3,3444.2,3.29864308]
[1735899583584,1.30305657,3444.3,3444.2,3.29864307]
[1735899584388,3.58354493,3444.3,3444.2,3.29864307]
[1735899588693,1.73910461,3444.3,3444.2,3.29864307]
[1735899589588,1.73910461,3444.3,3444.2,3.29864382]
[1735899589991,1.30305657,3444.3,3444.2,3.29864382]
[1735899591391,1.73910461,3444.3,3444.2,3.29864382]
[1735899592296,1.73910461,3444.3,3444.2,0.04510576]
[1735899592487,0.29058,3443.9,3443.8,4.56500536]
[1735899592688,1.30308657,3443.9,3443.8,4.56500536]
[1735899593098,42.10308657,3443.9,3443.8,4.56500536]
[1735899594700,0.2906,3443.7,3443.6,3.2078]
[1735899595095,1.30310657,3443.7,3443.6,3.2078]
[1735899595992,0.2906,3443.7,3443.6,3.2078]
[1735899596195,4.14950693,3443.7,3443.6,4.22030657]
[1735899597903,2.57263015,3443.7,3443.6,4.22030657]
[1735899598400,2.57263015,3443.7,3443.6,4.51091657]
[1735899599101,0.2906,3443.7,3443.6,4.51091657]
[1735899600003,2.28203015,3443.8,3443.6,4.22030657]
[1735899600200,2.57263015,3443.8,3443.6,4.22030657]
[1735899600400,0.2906,3443.7,3443.6,4.22030657]
[1735899600600,2.57263015,3443.7,3443.6,4.22030657]
[1735899601403,3.58513672,3443.7,3443.6,3.2078]
[1735899603105,2.57263015,3443.7,3443.6,3.2078]
[1735899603903,0.2906,3443.7,3443.6,3.2078]
[1735899604404,1.30310657,3443.7,3443.6,3.2078]
[1735899606406,0.29062,3443.4,3443.3,4.56500536]
[1735899607107,0.29063,3443.3,3443.2,4.56500536]
[1735899607506,0.29063,3443.3,3443.2,4.65587338]
[1735899608307,0.29063,3443.3,3443.2,0.09086802]
[1735899609902,0.29063,3443.3,3443.1,4.51094657]
[1735899610103,0.29063,3443.3,3443.2,0.09086926]
[1735899611809,0.29063,3443.3,3443.2,0.38150926]
[1735899612811,2.57149187,3443.4,3443.3,0.29063]
[1735899613008,2.57149187,3443.4,3443.3,1.30313657]
[1735899613314,0.29062,3443.5,3443.4,0.29062]
[1735899613510,0.29062,3443.5,3443.4,0.38148128]
[1735899614112,2.57147187,3443.6,3443.5,0.29062]
[1735899614312,2.28086187,3443.6,3443.5,4.60178785]
[1735899615711,2.28086187,3443.6,3443.5,4.60178365]
[1735899616102,2.28086187,3443.6,3443.5,4.6017833]
[1735899616306,0.29061,3443.7,3443.6,0.29061]
[1735899616506,0.29061,3443.7,3443.6,0.38146673]
[1735899617207,0.29061,3443.7,3443.6,0.09085673]
[1735899617910,0.29061,3443.7,3443.6,0.38146673]
[1735899619011,2.57147187,3443.7,3443.6,0.38146673]
[1735899619215,2.28086187,3443.7,3443.6,0.09085604]
[1735899619413,2.57146187,3443.7,3443.6,0.09085604]
[1735899619912,2.57146187,3443.7,3443.6,0.38146604]
[1735899620306,0.2906,3443.7,3443.6,0.09085604]
[1735899621913,2.57146187,3443.7,3443.6,0.09085604]
[1735899622210,2.28086187,3443.7,3443.6,0.09085767]
[1735899622511,2.57146187,3443.7,3443.6,0.09085767]
[1735899622815,2.28086187,3443.7,3443.6,0.09085759]
[1735899623312,2.57146187,3443.7,3443.6,0.38146759]
[1735899623612,2.57146187,3443.7,3443.6,0.09085759]
[1735899624010,2.57146187,3443.7,3443.6,0.38146759]
[1735899624212,2.57146187,3443.7,3443.6,0.09085759]
[1735899624814,2.57146187,3443.7,3443.6,0.09085754]
[1735899625414,2.57146187,3443.7,3443.6,0.09085757]
[1735899626219,3.58396844,3443.7,3443.6,0.09085757]
[1735899627314,1.30310657,3443.7,3443.6,0.09085757]
[1735899628419,1.30310657,3443.7,3443.6,0.09086381]
[1735899630022,1.7392528,3443.7,3443.6,0.09086381]
[1735899631524,1.7392528,3443.7,3443.6,0.09086288]
[1735899632034,1.7392528,3443.7,3443.6,0.09086361]
[1735899632431,6.30306465,3443.7,3443.6,0.09086361]
[1735899634427,6.01246465,3443.7,3443.6,0.09086282]
[1735899634627,6.30306465,3443.7,3443.6,0.09086282]
[1735899634929,5.29055808,3443.7,3443.6,0.09086282]
[1735899636528,0.72674623,3443.7,3443.6,0.09086282]
[1735899637439,0.72674623,3443.7,3443.6,0.38146422]
[1735899637641,0.72674623,3443.7,3443.6,0.09085422]
[1735899638339,0.72674623,3443.7,3443.6,0.38146422]
[1735899639135,0.72674623,3443.7,3443.6,0.09085422]
[1735899639443,2.57505982,3443.7,3443.6,11.35827946]
[1735899640442,2.57505982,3443.7,3443.6,11.26742524]
[1735899640746,2.57505982,3443.7,3443.6,11.35827878]
[1735899641146,2.57505982,3443.7,3443.6,11.06766878]
[1735899641446,2.57505982,3443.7,3443.6,11.35827878]
[1735899643141,2.57505982,3443.7,3443.6,11.35827914]
[1735899643640,2.57505982,3443.7,3443.6,11.35827872]
[1735899645046,2.28445982,3443.7,3443.6,11.35827872]
[1735899645544,0.39845982,3443.7,3443.6,16.35827872]
[1735899645746,3.42668973,3443.9,3443.6,16.35827872]
[1735899645747,3.42668973,3443.9,3443.8,0.29059]
[1735899645948,3.42668973,3443.9,3443.8,2.40645662]
[1735899646142,3.42668973,3443.9,3443.8,7.40645662]
[1735899646343,3.42668973,3443.9,3443.8,7.68462739]
[1735899647048,3.42668973,3444.6,3444.5,0.29053]
[1735899647248,3.42668973,3444.6,3444.5,3.58918348]
[1735899648541,5.71137916,3445.0,3444.5,7.86388448]
[1735899648542,3.42668973,3445.0,3444.5,7.86388448]
[1735899648744,0.29051,3444.8,3444.7,0.2905]
[1735899648946,0.29051,3444.8,3444.7,0.38135348]
[1735899649552,0.29051,3444.8,3444.7,0.38132334]
[1735899650147,0.29051,3444.8,3444.7,0.38132333]
[1735899650452,0.2905,3444.9,3444.8,0.2905]
[1735899650647,0.2905,3444.9,3444.8,0.38132333]
[1735899651249,0.2905,3444.9,3444.8,0.2905]
[1735899652357,0.2905,3444.9,3444.8,0.38132304]
[1735899652647,0.2905,3444.9,3444.8,0.2905]
[1735899653545,0.29049,3445.0,3444.8,0.2905]
[1735899653948,40.8,3445.3,3444.5,3.2078]
[1735899654141,0.29047,3445.2,3445.0,0.29048]
[1735899654345,0.29048,3445.1,3445.0,0.29048]
[1735899654543,40.8,3445.3,3445.0,0.29048]
[1735899654954,0.29048,3445.2,3445.0,0.29048]
[1735899655154,0.29048,3445.1,3445.0,0.29048]
[1735899655346,0.29048,3445.2,3445.0,0.29048]
[1735899655547,40.8,3445.3,3444.9,3.2078]
[1735899655852,0.29048,3445.1,3445.0,0.29049]
[1735899656152,0.29048,3445.2,3444.9,3.2078]
[1735899656346,40.8,3445.3,3445.1,0.29048]
[1735899656543,41.09047,3445.3,3445.1,0.29048]
[1735899656746,0.29047,3445.2,3445.1,0.29048]
[1735899656951,40.8,3445.3,3444.9,3.2078]
[1735899657150,40.8,3445.3,3445.2,0.29047]
[1735899659561,41.09047,3445.3,3445.1,0.29047]
[1735899659862,40.8,3445.3,3444.9,3.2078]
[1735899660155,0.29047,3445.2,3445.1,0.29048]
[1735899661153,41.09047,3445.3,3445.2,0.29047]
[1735899661349,40.8,3445.3,3444.9,3.2078]
[1735899661550,41.09047,3445.3,3445.2,0.29047]
[1735899661754,41.09047,3445.3,3444.9,3.2078]
[1735899661755,0.29047,3445.2,3445.1,0.29048]
[1735899662257,0.29047,3445.2,3445.0,0.29048]
[1735899662457,0.29048,3445.1,3445.0,0.29048]
[1735899663254,0.29048,3445.1,3445.0,0.38129525]
[1735899663753,0.29048,3445.1,3445.0,0.29048]
[1735899663947,0.29048,3445.1,3445.0,0.38129512]
[1735899665153,40.8,3445.3,3445.0,0.09081512]
[1735899665348,0.29048,3445.2,3445.1,0.29047]
[1735899666356,0.29048,3445.2,3445.1,1.30267285]
[1735899667347,0.29048,3445.2,3445.1,1.3934888]
[1735899667963,0.29048,3445.2,3445.1,1.1030188]
[1735899668456,0.29048,3445.2,3445.1,1.3934988]
[1735899669155,40.8,3445.4,3445.1,1.1030188]
[1735899669352,0.29047,3445.3,3445.2,0.29047]
[1735899670263,41.09046,3445.4,3445.3,0.29046]
[1735899670766,41.09046,3445.4,3445.3,1.30266285]
[1735899670960,41.09046,3445.4,3445.3,1.39149534]
[1735899671161,41.09046,3445.4,3445.3,1.10301695]
[1735899672559,41.09046,3445.4,3445.3,1.103018]
[1735899673364,41.09046,3445.4,3445.3,1.1030178]
[1735899674065,41.09046,3445.4,3445.3,1.10301781]
[1735899675061,41.09046,3445.4,3445.3,1.39347781]
[1735899675367,41.09046,3445.4,3445.3,1.10301781]
[1735899675960,41.09046,3445.4,3445.3,0.09081496]
[1735899676468,41.09045,3445.4,3445.3,0.09081494]
[1735899677362,42.2523,3445.4,3444.7,3.2078]
[1735899677565,42.2523,3445.4,3444.4,4.565231]
[1735899677566,0.29053,3444.5,3444.4,4.565231]
[1735899677772,1.30273285,3444.5,3444.4,4.565231]
[1735899678669,0.29056,3444.1,3443.9,4.565231]
[1735899678870,0.29057,3444.0,3443.9,5.86801385]
[1735899679173,0.29057,3444.1,3444.0,0.29057]
[1735899683470,0.29059,3443.9,3443.8,0.29058]
[1735899685676,0.72641,3444.2,3443.7,5.51206456]
[1735899685870,0.29059,3443.8,3443.7,3.2078]
[1735899689573,0.29059,3443.8,3443.7,3.4984]
[1735899690875,3.2078,3444.3,3443.7,3.2078]
[1735899691075,0.29057,3444.1,3444.0,0.29057]
[1735899691680,0.29056,3444.2,3444.1,0.29056]
[1735899691875,3.2078,3444.3,3443.7,5.51206456]
[1735899692084,3.2078,3444.3,3444.2,0.29056]
[1735899692670,0.29054,3444.4,3444.2,0.29056]
[1735899692875,0.29054,3444.4,3444.3,0.29055]
[1735899693577,44.22668973,3444.7,3444.2,0.29055]
[1735899693877,0.29055,3444.4,3444.2,0.29055]
[1735899694474,40.8,3444.7,3444.2,0.29055]
[1735899694781,0.29055,3444.3,3444.2,0.29055]
[1735899697079,0.29056,3444.2,3444.1,0.29056]
[1735899697378,0.29055,3444.3,3444.2,0.29055]
[1735899698883,40.8,3444.7,3443.9,3.2078]
[1735899699076,40.8,3444.7,3444.1,0.29056]
[1735899699077,0.29056,3444.2,3444.1,0.29056]
[1735899699277,0.29055,3444.3,3444.2,0.29055]
[1735899699680,0.29056,3444.2,3444.1,0.29056]
[1735899700280,0.29056,3444.2,3444.1,1.30335611]
[1735899703086,1.01279611,3444.2,3444.0,3.2078]
[1735899703286,0.29056,3444.1,3444.0,3.49837]
[1735899704684,0.29056,3444.1,3444.0,3.2078]
[1735899704983,0.29059,3443.9,3443.8,0.29059]
[1735899705883,1.01279611,3444.2,3443.7,2.12879611]
[1735899706085,0.29059,3443.8,3443.7,2.41939611]
[1735899706787,0.29059,3443.8,3443.7,1.30339611]
[1735899711188,0.29059,3443.8,3443.7,1.01279611]
[1735899711388,0.2906,3443.7,3443.6,3.4984]
[1735899713691,0.2906,3443.9,3443.8,0.29058]
[1735899713992,0.2906,3443.9,3443.8,1.30337611]
[1735899720201,0.29056,3444.3,3444.2,0.29055]
[1735899720402,0.29055,3444.3,3444.2,0.29055]
[1735899720801,3.42668973,3444.4,3444.3,0.29055]
[1735899721191,3.49834,3444.5,3444.4,0.29054]
[1735899721192,0.29054,3444.5,3444.4,0.29054]
[1735899721397,0.29054,3444.5,3444.4,3.49834]
[1735899721594,0.29053,3444.6,3444.5,0.29052]
[1735899723601,44.22668973,3444.8,3444.4,7.773031]
[1735899723802,44.22668973,3444.8,3444.5,1.01279611]
[1735899724004,44.51720973,3444.8,3444.7,0.29051]
[1735899724802,0.29052,3444.7,3444.6,4.855751]
[1735899726307,0.29052,3444.7,3444.6,0.29052]
[1735899727807,41.09051,3444.8,3444.7,0.29051]
[1735899730202,40.8,3444.8,3444.7,1.30330611]
[1735899730611,0.29052,3444.7,3444.6,0.29052]
[1735899731311,0.29051,3444.7,3444.6,0.29052]
[1735899739617,0.29051,3444.9,3444.8,0.2905]
[1735899739810,0.29051,3444.9,3444.8,1.30329611]
[1735899740013,3.42668973,3445.0,3444.6,0.29052]
[1735899740311,0.29052,3444.7,3444.6,1.30331611]
[1735899740706,0.29052,3444.7,3444.6,0.29052]
[1735899740907,0.29052,3444.7,3444.6,1.30331611]
[1735899741209,0.29052,3444.7,3444.6,5.86854711]
[1735899742705,0.29052,3444.7,3444.6,1.30331611]
[1735899744216,0.29052,3444.6,3444.5,4.855751]
[1735899745217,0.29052,3444.6,3444.5,4.565231]
[1735899745404,0.29053,3444.5,3444.4,3.49834]
[1735899745602,0.29053,3444.5,3444.4,3.2078]
[1735899746007,0.29054,3444.4,3444.3,4.565231]
[1735899746717,41.09054,3444.4,3444.3,4.565231]
[1735899747909,0.29059,3443.8,3443.6,0.2906]
[1735899748112,0.29059,3443.8,3443.7,0.2906]
[1735899749613,0.2906,3443.7,3443.6,1.30339611]
[1735899756315,0.2906,3443.7,3443.6,1.01279611]
[1735899756521,0.2906,3443.7,3443.6,1.30340611]
[1735899768733,0.2906,3443.7,3443.6,4.51120611]
[1735899769225,0.2906,3443.7,3443.6,3.49841]
[1735899769428,0.2906,3443.7,3443.6,4.51120611]
[1735899773440,0.2906,3443.7,3443.6,3.2078]
[1735899773824,0.2906,3443.7,3443.4,4.565231]
[1735899774127,1.30341611,3443.5,3443.4,4.565231]
[1735899774631,42.10341611,3443.5,3443.4,4.565231]
[1735899775734,42.10341611,3443.5,3442.7,0.29068]
[1735899775735,0.29067,3442.8,3442.7,0.29068]
[1735899776639,0.29068,3442.7,3442.6,1.30347611]
[1735899777530,0.29068,3442.7,3442.6,1.01279611]
[1735899777734,0.29068,3442.7,3442.6,1.30348611]
[1735899777933,0.29068,3442.7,3442.6,1.01279611]
[1735899778349,0.29068,3442.7,3442.6,1.30348611]
[1735899779239,0.29068,3442.7,3442.6,0.29069]
[1735899779439,0.29068,3442.7,3442.6,1.30348611]
[1735899781036,0.29069,3442.6,3442.5,3.2078]
[1735899781541,0.29071,3442.4,3442.3,4.565231]
[1735899781744,1.30350611,3442.4,3442.3,4.565231]
[1735899782041,42.10350611,3442.4,3442.3,4.565231]
[1735899782528,42.10350611,3442.4,3441.9,4.565231]
[1735899782529,0.29074,3442.0,3441.9,4.565231]
[1735899783747,0.29074,3442.0,3441.9,4.855981]
[1735899784446,0.29074,3442.0,3441.9,0.29075]
[1735899785440,40.8,3442.4,3441.8,2.30680759]
[1735899785642,0.29074,3442.1,3442.0,0.29074]
[1735899785853,0.29074,3442.1,3441.8,2.30680759]
[1735899785854,0.72677,3442.5,3441.8,2.30680759]
[1735899786042,0.29074,3442.1,3441.9,0.29075]
[1735899786348,0.29074,3442.1,3442.0,0.29074]
[1735899787047,0.72677,3442.5,3441.8,2.30680759]
[1735899787345,0.72677,3442.5,3441.8,2.59756759]
[1735899787346,0.29075,3441.9,3441.8,2.59756759]
[1735899788345,0.29075,3441.9,3441.8,2.30680759]
[1735899788543,0.72677,3442.5,3441.7,3.2078]
[1735899788544,2.30680759,3442.5,3441.7,3.2078]
[1735899788743,0.29078,3441.6,3441.5,0.31945002]
[1735899789236,0.29078,3441.6,3441.5,0.61023002]